[Event "45th FIDE Womens Olympiad 2024"]
[Site "Budapest"]
[Date "2024.09.12"]
[Round "2.92"]
[White "Duque, Raquel Dos Santos"]
[Black "Markantonaki, Haritomeni"]
[Result "0-1"]
[ECO "A46"]
[WhiteElo "1913"]
[BlackElo "2179"]
[Annotator "ChessBase"]
[PlyCount "120"]
[EventDate "2024.09.05"]
[EventType "team-tourn"]
[EventCountry "HUN"]
[SourceTitle "playchess.com"]
[Source "ChessBase"]
[SourceQuality "1"]
[WhiteTeam "Portugal"]
[BlackTeam "Greece"]
[WhiteTeamCountry "POR"]
[BlackTeamCountry "GRE"]
[TimeControl "40/5400+30:1800+30"]

1. d4 Nf6 2. Nf3 e6 3. g3 d5 4. Bg2 b5 5. O-O Nbd7 6. Bg5 Be7 7. Qd3 a6 8. a4 b4 9. c4 bxc3 10. bxc3 a5 11. Re1 O-O 12. Nbd2 Ba6 13. Qc2 c5 14. e4 Nxe4 15. Nxe4 dxe4 16. Bxe7 Qxe7 17. Qxe4 Nf6 18. Qe5 Qa7 19. Nd2 Rac8 20. Nb3 cxd4 21. cxd4 Rc3 22. Rab1 Bd3 23. Rec1 Rfc8 24. Nc5 Bxb1 25. Rxc3 Ba2 26. Ne4 Rxc3 27. Nxc3 Bb3 28. Qb5 Bc2 29. Qc4 Qb8 30. Qb5 Qxb5 31. axb5 Nd7 32. Bc6 Nb8 33. Kf1 Kf8 34. Ke2 Ke7 35. Kd2 Bb3 36. Ne4 Ba4 37. Nc5 Nxc6 38. Nxa4 Nxd4 39. b6 Kd6 40. Kc3 Nf3 41. Nc5 Ne5 42. b7 Kc7 43. Kb3 Nc6 44. Ka4 Nd8 45. b8=Q+ Kxb8 46. Ne4 Kc7 47. Kxa5 Kc6 48. Kb4 Kd5 49. f3 f5 50. Nd2 Kd4 51. Kb3 Kd3 52. Nc4 Nc6 53. f4 Nd4+ 54. Kb4 Nf3 55. h4 Nd4 56. Nd6 Ke3 57. Ne8 g6 58. Ng7 Ne2 59. h5 Nxg3 60. Nxe6 gxh5 0-1

[Event "45th FIDE Womens Olympiad 2024"]
[Site "Budapest"]
[Date "2024.09.12"]
[Round "2.93"]
[White "Perez Rodriguez, Jennifer"]
[Black "Brunello, Marina"]
[Result "1-0"]
[ECO "A48"]
[WhiteElo "2224"]
[BlackElo "2348"]
[Annotator "TA"]
[PlyCount "93"]
[EventDate "2024.09.05"]
[EventType "team-tourn"]
[EventCountry "HUN"]
[SourceTitle "playchess.com"]
[Source "ChessBase"]
[SourceQuality "1"]
[WhiteTeam "Paraguay"]
[BlackTeam "Italy"]
[WhiteTeamCountry "PAR"]
[BlackTeamCountry "ITA"]
[TimeControl "40/5400+30:1800+30"]

{[%evp 14,93,0,0,31,0,19,0,-5,-13,0,0,0,0,0,0,0,-40,-2,-8,-6,-52,-37,-48,-49,-45,-20,-26,-12,-7,25,8,14,16,85,54,176,180,189,180,214,223,273,268,366,221,230,225,222,229,356,118,121,118,106,111,111,111,151,123,249,255,278,283,316,314,359,367,426,433,460,454,456,460,504,472,695,689,1232,1225,1189,1072]} 1. d4 Nf6 2. Bf4 b6 3. e3 Bb7 4. Nf3 g6 5. h3 Bg7 6. Be2 O-O 7. O-O d6 8. a4 Nbd7 9. Nc3 Re8 10. Bh2 a6 {The position is equal.} 11. Qd3 e5 12. dxe5 dxe5 13. Qc4 Rc8 14. Rfd1 {[%cal Of3e5]} Qe7 15. e4 Bf8 16. Nd2 a5 17. f3 (17. Nf3 $11) 17... Nc5 18. Qa2 Nh5 19. Bc4 Bh6 20. Nf1 Rf8 21. Kh1 c6 22. Ne2 Rcd8 23. Qa3 Qg5 (23... Qc7 $11 {remains equal.}) 24. b4 Na6 (24... Ba6 $1 $14 25. Rxd8 (25. bxc5 Bxc4 26. Re1 b5 $11) 25... Rxd8 26. Bxa6 Nxa6) 25. bxa5 $18 bxa5 26. Qb2 Qe7 27. Bxe5 {Black must now prevent Nh2.} Rxd1 28. Rxd1 {[#] Bd6 is the strong threat.} Re8 {[%cal Bf8e8,Be8e5,Be5c5][%mdl 32]} 29. Qb6 Qxe5 30. Qxb7 Nc7 31. Qxc6 {Threatens to win with Nh2.} Nf4 (31... Nf6 $142 32. Qd6 Qxd6 33. Rxd6 Ne6) 32. Qd6 $2 {[#]} (32. Nh2 $18 Nxe2 33. Ng4 (33. Bxe2 Re6 $16)) 32... Nxe2 $16 33. Qxe5 Rxe5 34. Bxe2 Rc5 {Repels Bc4} 35. c4 Bg5 36. Nd2 Bxd2 (36... Rc6 $16 37. g3 (37. Nb3 Rb6 $16) 37... Ne6) 37. Rxd2 {[%mdl 4096] Endgame. KRB-KRN} g5 {[%cal Bg6g5,Bg5h4][%mdl 32]} 38. Kg1 ({Don't take} 38. Rd8+ $6 Kg7 39. Rb8 h5 $18) 38... Kg7 39. Kf2 h5 40. g3 Kf6 41. Ke3 {White is clearly winning.} h4 42. gxh4 gxh4 43. f4 {Inhibits Rg5.} Rc6 44. Rb2 Na8 (44... Kg7 $142 45. Rb7 Na8) 45. e5+ $18 Ke7 46. Bf3 Rb6 47. Rb5 {Weighted Error Value: White=0.22 (precise) /Black=0.40.  Missed win:     	White=1     	---        Mistake:       	White=1     	Black=5      Inaccurate:     	White=4     	Black=5      OK:         	White=17    	Black=6      Best:        	---       	Black=1} 1-0

[Event "45th FIDE Womens Olympiad 2024"]
[Site "Budapest"]
[Date "2024.09.12"]
[Round "2.94"]
[White "Zimina, Olga"]
[Black "Vargas, Gabriela"]
[Result "1/2-1/2"]
[ECO "C00"]
[WhiteElo "2302"]
[BlackElo "2109"]
[Annotator "ChessBase"]
[PlyCount "196"]
[EventDate "2024.09.05"]
[EventType "team-tourn"]
[EventCountry "HUN"]
[SourceTitle "playchess.com"]
[Source "ChessBase"]
[SourceQuality "1"]
[WhiteTeam "Italy"]
[BlackTeam "Paraguay"]
[WhiteTeamCountry "ITA"]
[BlackTeamCountry "PAR"]
[TimeControl "40/5400+30:1800+30"]

1. Nf3 d5 2. g3 Nf6 3. Bg2 e6 4. O-O Be7 5. d3 O-O 6. Nbd2 c5 7. e4 Nc6 8. Re1 b5 9. e5 Nd7 10. Nf1 a5 11. h4 a4 12. a3 b4 13. Bf4 bxa3 14. bxa3 Ba6 15. Ne3 Nd4 16. Bh3 Rc8 17. Nd2 Nb6 18. Qg4 Kh8 19. h5 h6 20. Bf1 Rb8 21. Qd1 Bg5 22. Ng2 Bxf4 23. Nxf4 Nd7 24. Ra2 Qa5 25. Bg2 Qc7 26. c3 Nc6 27. Qxa4 Bb5 28. Qc2 Ndxe5 29. a4 Ba6 30. Nf3 Nxf3+ 31. Bxf3 Ne5 32. Bg2 c4 33. dxc4 Bxc4 34. Raa1 Rfc8 35. Qd2 Nc6 36. Bh3 Re8 37. Ng2 Ne5 38. Qe3 Nd3 39. Red1 Nc5 40. Nh4 Rb2 41. Bg2 Re2 42. Qf4 Qxf4 43. gxf4 Rc2 44. f5 Rxc3 45. fxe6 fxe6 46. Re1 Ra8 47. Ng6+ Kh7 48. a5 Ra6 49. Rab1 Bb3 50. Bf1 Rxa5 51. Nf8+ Kg8 52. Nxe6 Nxe6 53. Rxe6 Rac5 54. Re8+ Kf7 55. Rb8 Ba4 56. R1b4 Bd1 57. Rf4+ Ke7 58. Rg8 Bxh5 59. Rxg7+ Ke6 60. Rh7 Rc1 61. Rxh6+ Ke5 62. Rf8 Bg4 63. Re8+ Kf5 64. Kg2 Bf3+ 65. Kxf3 Rxf1 66. Rh5+ Kg6 67. Ree5 Rc2 68. Rhg5+ Kf6 69. Rgf5+ Kg6 70. Kg2 Rd1 71. Rxd5 Rxd5 72. Rxd5 Rc3 73. f3 Kf6 74. Kg3 Rc6 75. Kg4 Rc4+ 76. f4 Rc6 77. Rf5+ Kg6 78. Rg5+ Kf6 79. Rh5 Kg6 80. f5+ Kg7 81. Kg5 Ra6 82. Rh1 Rb6 83. Ra1 Rc6 84. Ra7+ Kf8 85. Rd7 Ra6 86. Kf4 Ke8 87. Rd5 Kf7 88. Ke5 Ke7 89. Rb5 Kf7 90. Rb7+ Kf8 91. Rd7 Ke8 92. Rd6 Rxd6 93. Kxd6 Kf7 94. Ke5 Ke7 95. f6+ Kf7 96. Kf5 Kf8 97. Kg5 Kf7 98. Kf5 Kf8 1/2-1/2

[Event "45th FIDE Womens Olympiad 2024"]
[Site "Budapest"]
[Date "2024.09.12"]
[Round "2.95"]
[White "Montiel Caceres, Helen"]
[Black "Gueci, Tea"]
[Result "0-1"]
[ECO "D35"]
[WhiteElo "1864"]
[BlackElo "2199"]
[Annotator "ChessBase"]
[PlyCount "118"]
[EventDate "2024.09.05"]
[EventType "team-tourn"]
[EventCountry "HUN"]
[SourceTitle "playchess.com"]
[Source "ChessBase"]
[SourceQuality "1"]
[WhiteTeam "Paraguay"]
[BlackTeam "Italy"]
[WhiteTeamCountry "PAR"]
[BlackTeamCountry "ITA"]
[TimeControl "40/5400+30:1800+30"]

1. d4 d5 2. c4 e6 3. Nc3 Nf6 4. cxd5 exd5 5. Bg5 Bb4 6. e3 h6 7. Bh4 g5 8. Bg3 Ne4 9. Qb3 c5 10. dxc5 Nc6 11. a3 Bxc3+ 12. bxc3 Nxc5 13. Qc2 Qf6 14. Rc1 Bf5 15. Qd1 O-O-O 16. Nf3 Ne4 17. Nd4 Nxg3 18. hxg3 Kb8 19. Qf3 Nxd4 20. cxd4 Qe6 21. Qh5 Bg4 22. Qh2 Rc8 23. Rxc8+ Qxc8 24. Kd2 Qc7 25. Be2 Qa5+ 26. Kd1 Bd7 27. g4+ Ka8 28. Bd3 Qxa3 29. Bc2 Rc8 30. Qxh6 Qa1+ 31. Ke2 Qb2 32. Qxg5 Qxc2+ 33. Kf3 f5 34. Kg3 fxg4 35. Qg7 Qc7+ 36. f4 gxf3+ 37. Kxf3 Bf5 38. Qxc7 Rxc7 39. Kf4 Rh7 40. Rc1 Bd7 41. Ke5 Bc6 42. g4 Re7+ 43. Kf4 Kb8 44. g5 Be8 45. Rh1 Bg6 46. Rh8+ Kc7 47. Rf8 Rf7+ 48. Rxf7+ Bxf7 49. Ke5 Kc6 50. Kf6 Bh5 51. g6 Bxg6 52. Kxg6 a5 53. Kf6 a4 54. Ke6 a3 55. e4 a2 56. exd5+ Kb6 57. d6 a1=Q 58. d7 Qxd4 59. Ke7 Kc7 0-1

[Event "45th FIDE Womens Olympiad 2024"]
[Site "Budapest"]
[Date "2024.09.12"]
[Round "2.96"]
[White "Sedina, Elena"]
[Black "Oviedo Acosta, Paula"]
[Result "1-0"]
[ECO "B27"]
[WhiteElo "2196"]
[BlackElo "1790"]
[Annotator "ChessBase"]
[PlyCount "71"]
[EventDate "2024.09.05"]
[EventType "team-tourn"]
[EventCountry "HUN"]
[SourceTitle "playchess.com"]
[Source "ChessBase"]
[SourceQuality "1"]
[WhiteTeam "Italy"]
[BlackTeam "Paraguay"]
[WhiteTeamCountry "ITA"]
[BlackTeamCountry "PAR"]
[TimeControl "40/5400+30:1800+30"]

1. e4 c5 2. Nf3 a6 3. c3 g6 4. d4 cxd4 5. cxd4 d5 6. exd5 Nf6 7. Nc3 Bg7 8. Qb3 Nbd7 9. a4 Nb6 10. Bg5 Nfxd5 11. a5 Nxc3 12. bxc3 Nd7 13. Bc4 O-O 14. O-O h6 15. Bh4 g5 16. Bg3 b5 17. Bd5 Ra7 18. Rfe1 Nf6 19. Bc6 Bd7 20. Ne5 Be6 21. Qa3 Bd5 22. Bxd5 Qxd5 23. Nd3 Ne4 24. Nb4 Qa8 25. Be5 Bxe5 26. dxe5 Rc8 27. Re3 Rac7 28. Rc1 Rc4 29. Qb2 Rd8 30. Nd3 Qc8 31. e6 Rxc3 32. exf7+ Kf8 33. Rce1 Nf6 34. Qe2 Rcxd3 35. Rxd3 Rxd3 36. Qxe7+ 1-0

[Event "45th FIDE Womens Olympiad 2024"]
[Site "Budapest"]
[Date "2024.09.12"]
[Round "2.97"]
[White "Efroimski, Marsel"]
[Black "Shuqja, Klean"]
[Result "1-0"]
[ECO "B01"]
[WhiteElo "2408"]
[BlackElo "2042"]
[Annotator "TA"]
[PlyCount "53"]
[EventDate "2024.09.05"]
[EventType "team-tourn"]
[EventCountry "HUN"]
[SourceTitle "playchess.com"]
[Source "ChessBase"]
[SourceQuality "1"]
[WhiteTeam "Israel"]
[BlackTeam "Albania"]
[WhiteTeamCountry "ISR"]
[BlackTeamCountry "ALB"]
[TimeControl "40/5400+30:1800+30"]

{[%evp 9,53,42,79,47,54,45,54,31,64,18,44,50,39,42,49,42,81,62,106,97,124,125,115,127,139,53,107,74,69,48,117,114,143,141,145,135,264,100,91,94,239,227,506,505,508,504]} 1. e4 d5 2. exd5 Qxd5 3. Nc3 Qd6 4. d4 Nf6 5. Nf3 g6 6. h3 Bg7 7. Be3 O-O 8. Qd2 {White is slightly better.} c6 9. Bh6 (9. Bd3 $14) 9... Be6 10. Be2 Nbd7 11. Bf4 Qb4 {[%cal Od7b6]} 12. O-O Rfc8 13. Rfe1 a5 14. Ng5 $36 {[%mdl 2048] Keeping Black busy.} Nf8 {[#]} 15. a3 $1 Qb6 (15... Qxb2 $2 {loses.} 16. Reb1 $18) 16. Na4 Qa7 {[#]} 17. c4 {Inhibits Nd5.} (17. Nc5 $1 $16) 17... b6 (17... b5 $14 18. cxb5 cxb5) 18. Bf1 {White has more active pieces.} Rd8 {[%cal Ob6b5]} 19. Nf3 (19. Be3 {with more complications.} b5 20. d5 Qb8 21. Qc1) 19... N8d7 (19... b5 $14) 20. Nc3 Nc5 21. Qe3 Nb3 22. Rad1 {Ne5 would now be deadly.} Bf5 (22... b5 $16 {was called for.}) 23. Bd3 $2 (23. Qxe7 Bc2 24. Qxa7 Rxa7 $16) (23. Ne5 $18 {and White stays clearly on top.} Qb7 24. g4) 23... Bxd3 $16 24. Rxd3 {[%cal Of3e5] Hoping for Ne5!} e6 (24... Qa6 $16) 25. Bg5 {aiming for Bxf6.} Rdc8 $2 (25... a4 {keeps fighting.} 26. Ne5 Qc7) 26. Bxf6 $18 Bxf6 27. Ne4 {[%csl LRb3,LRf6] Weighted Error Value: White=0.22 (precise) /Black=0.43.  Missed win:     	White=1     	---        Mistake:       	White=2     	Black=5      Inaccurate:     	White=1     	Black=4      OK:         	White=8     	Black=5      Best:        	White=1     	Black=1      Strong:       	White=1     	---} 1-0

[Event "45th FIDE Womens Olympiad 2024"]
[Site "Budapest"]
[Date "2024.09.12"]
[Round "2.98"]
[White "Geske, Bruna"]
[Black "Orian, Noga"]
[Result "0-1"]
[ECO "B51"]
[WhiteElo "2023"]
[BlackElo "2187"]
[Annotator "ChessBase"]
[PlyCount "60"]
[EventDate "2024.09.05"]
[EventType "team-tourn"]
[EventCountry "HUN"]
[SourceTitle "playchess.com"]
[Source "ChessBase"]
[SourceQuality "1"]
[WhiteTeam "Albania"]
[BlackTeam "Israel"]
[WhiteTeamCountry "ALB"]
[BlackTeamCountry "ISR"]
[TimeControl "40/5400+30:1800+30"]

1. e4 c5 2. Nf3 Nc6 3. Bb5 d6 4. O-O Bd7 5. Re1 Nf6 6. h3 a6 7. Bf1 Ne5 8. Nc3 e6 9. a4 Be7 10. Nxe5 dxe5 11. a5 Bc6 12. d3 Qc7 13. Be3 O-O 14. Qc1 Nd7 15. Nb1 f5 16. f3 Bh4 17. Rd1 Rf7 18. exf5 exf5 19. Kh1 Kh8 20. Nd2 g5 21. Nb3 g4 22. Nxc5 Nxc5 23. Bxc5 gxf3 24. Kg1 fxg2 25. Be2 f4 26. Bh5 Qd7 27. Bg4 Qd5 28. Bf2 Bxf2+ 29. Kxf2 Qd4+ 30. Ke2 f3+ 0-1

[Event "45th FIDE Womens Olympiad 2024"]
[Site "Budapest"]
[Date "2024.09.12"]
[Round "2.99"]
[White "Levitan, Ronit"]
[Black "Caku, Kler"]
[Result "1-0"]
[ECO "C97"]
[WhiteElo "2137"]
[BlackElo "1859"]
[Annotator "NA"]
[PlyCount "121"]
[EventDate "2024.09.05"]
[EventType "team-tourn"]
[EventCountry "HUN"]
[SourceTitle "playchess.com"]
[Source "ChessBase"]
[SourceQuality "1"]
[WhiteTeam "Israel"]
[BlackTeam "Albania"]
[WhiteTeamCountry "ISR"]
[BlackTeamCountry "ALB"]
[TimeControl "40/5400+30:1800+30"]

1. e4 e5 2. Nf3 Nc6 3. Bb5 a6 4. Ba4 Nf6 5. O-O b5 6. Bb3 Be7 7. Re1 O-O 8. h3 d6 9. c3 Na5 10. Bc2 c5 11. d4 Qc7 12. d5 Bd7 13. b3 c4 14. b4 Nb7 15. a4 a5 16. axb5 axb4 17. Rxa8 Rxa8 18. cxb4 Bxb5 19. Nc3 Be8 20. Be3 Nd7 21. Qe2 Nf8 22. Rc1 Ng6 23. Nd2 Rc8 24. g3 Bd7 25. Kg2 Nd8 26. Ra1 Rb8 27. Rb1 Rc8 28. h4 Bf6 29. h5 Nf4+ 30. gxf4 exf4 31. Bxf4 Bxc3 32. Qe3 Be5 33. h6 g6 34. Nf3 f6 35. Nxe5 dxe5 36. Bg3 Nf7 37. b5 Rb8 38. b6 Qd6 39. f3 Qf8 40. Bf2 Rb7 41. Bd1 Ng5 42. f4 Nh3 43. fxe5 fxe5 44. Bg3 Nf4+ 45. Bxf4 exf4 46. Qf3 Qxh6 47. Be2 Qg5+ 48. Kf2 Qh4+ 49. Kg2 h5 50. Bxc4 Bg4 51. d6+ Kh7 52. Qxf4 g5 53. Qg3 Bh3+ 54. Qxh3 Qxe4+ 55. Qf3 Qc2+ 56. Be2 Qc8 57. Qxh5+ Kg8 58. Qg6+ Rg7 59. Bc4+ Qxc4 60. Qe8+ Kh7 61. Rh1+ 1-0

[Event "45th FIDE Womens Olympiad 2024"]
[Site "Budapest"]
[Date "2024.09.12"]
[Round "2.100"]
[White "Shabanaj, Eglantina"]
[Black "Kochavi, Dana"]
[Result "0-1"]
[ECO "B13"]
[WhiteElo "1957"]
[BlackElo "2009"]
[Annotator "NA"]
[PlyCount "182"]
[EventDate "2024.09.05"]
[EventType "team-tourn"]
[EventCountry "HUN"]
[SourceTitle "playchess.com"]
[Source "ChessBase"]
[SourceQuality "1"]
[WhiteTeam "Albania"]
[BlackTeam "Israel"]
[WhiteTeamCountry "ALB"]
[BlackTeamCountry "ISR"]
[TimeControl "40/5400+30:1800+30"]

1. e4 c6 2. d4 d5 3. exd5 cxd5 4. Bd3 Nc6 5. c3 Qc7 6. h3 Nf6 7. Nf3 g6 8. Nbd2 Bf5 9. Qe2 Nh5 10. Nb3 Nf4 11. Bxf4 Qxf4 12. O-O Bg7 13. Nc5 Rb8 14. Bb5 O-O 15. Rfe1 Bf6 16. Qe3 Qd6 17. Bd3 Bc8 18. Bc2 Bg7 19. Rad1 Re8 20. Ne5 b6 21. Nxc6 Qxc6 22. Ba4 b5 23. Bb3 Bf5 24. Qf3 Rbd8 25. a4 a6 26. axb5 axb5 27. g4 Bc8 28. Nd3 Qd6 29. Re2 e6 30. Rde1 Ba6 31. Nb4 Bb7 32. Nd3 Rf8 33. Qe3 Ba6 34. Nb4 Kh8 35. f4 Bb7 36. Bc2 Rde8 37. Nd3 Ba6 38. b4 f6 39. h4 Bc8 40. Qg3 Re7 41. g5 Ref7 42. Rf2 Qc7 43. gxf6 Bxf6 44. Ne5 Rg7 45. Ref1 Qd8 46. Rh2 Bd7 47. Re1 Qc7 48. Kh1 Rc8 49. Re3 Qa7 50. Rhe2 Qa3 51. Ng4 Bxd4 52. cxd4 Qc1+ 53. Qe1 Qxe1+ 54. Rxe1 Rxc2 55. Ne5 Bc8 56. Ra1 Rgc7 57. Nd3 R7c3 58. Ra8 Kg7 59. Ra7+ Kg8 60. Ra8 Rd2 61. Rxe6 Rdxd3 62. Re8+ Kf7 63. Rexc8 Rxc8 64. Rxc8 Rxd4 65. h5 Rxf4 66. Rc7+ Kf6 67. Rxh7 Rh4+ 68. Kg2 gxh5 69. Kg3 Rxb4 70. Rxh5 Ke6 71. Kf3 Re4 72. Rh6+ Ke5 73. Rb6 b4 74. Kf2 Rc4 75. Ke3 d4+ 76. Kd3 Rc3+ 77. Kd2 b3 78. Rb5+ Ke4 79. Rb4 Kd5 80. Rb5+ Kc4 81. Rb8 Rc2+ 82. Kd1 d3 83. Rc8+ Kb4 84. Rb8+ Ka3 85. Rd8 Rc4 86. Rxd3 Ka2 87. Rd8 b2 88. Ra8+ Kb3 89. Rb8+ Kc3 90. Rb7 Rd4+ 91. Ke2 Rb4 0-1

[Event "45th FIDE Womens Olympiad 2024"]
[Site "Budapest"]
[Date "2024.09.12"]
[Round "2.101"]
[White "Varela La Madrid, Tilsia Carolina"]
[Black "Francisco Guecamburu, Candela Be"]
[Result "0-1"]
[ECO "B22"]
[WhiteElo "2017"]
[BlackElo "2294"]
[Annotator "ChessBase"]
[PlyCount "108"]
[EventDate "2024.09.05"]
[EventType "team-tourn"]
[EventCountry "HUN"]
[SourceTitle "playchess.com"]
[Source "ChessBase"]
[SourceQuality "1"]
[WhiteTeam "Venezuela"]
[BlackTeam "Argentina"]
[WhiteTeamCountry "VEN"]
[BlackTeamCountry "ARG"]
[TimeControl "40/5400+30:1800+30"]

1. e4 c5 2. c3 d5 3. exd5 Qxd5 4. Nf3 Nf6 5. d4 e6 6. Be3 cxd4 7. cxd4 Bb4+ 8. Nc3 Qa5 9. Bd2 O-O 10. Bd3 Nc6 11. O-O Rd8 12. a3 Bxc3 13. Bxc3 Qh5 14. Re1 Bd7 15. Bd2 Be8 16. Bf4 Qd5 17. Be5 Nxe5 18. Rxe5 Qd6 19. Qe2 Qb6 20. Re1 Bc6 21. b4 Bxf3 22. Qxf3 Qxd4 23. Bb1 Rac8 24. h3 b6 25. R5e3 Qb2 26. g4 Rc1 27. Be4 Rxe1+ 28. Rxe1 Qd2 29. Re2 Qd1+ 30. Kg2 h6 31. Bc2 Qd5 32. Re3 Rc8 33. Bb3 Qxf3+ 34. Kxf3 Kf8 35. h4 h5 36. gxh5 Nxh5 37. Kg4 Nf6+ 38. Kg5 Rc1 39. Kf4 Ke7 40. Kf3 Ne8 41. Rd3 Nd6 42. Bd1 Nc4 43. Ke2 Nb2 44. Rd2 Nxd1 45. Rxd1 Rxd1 46. Kxd1 Kd6 47. Kd2 b5 48. Ke3 Ke5 49. f4+ Kf5 50. Kf3 a6 51. Kg3 g6 52. Kf3 f6 53. Kg3 Ke4 54. Kg4 Kd4 0-1

[Event "45th FIDE Womens Olympiad 2024"]
[Site "Budapest"]
[Date "2024.09.12"]
[Round "2.102"]
[White "Campos, Maria Jose"]
[Black "Otazo Sanchez, Annyd Gabriela"]
[Result "1-0"]
[ECO "A14"]
[WhiteElo "2252"]
[BlackElo "1976"]
[Annotator "ChessBase"]
[PlyCount "89"]
[EventDate "2024.09.05"]
[EventType "team-tourn"]
[EventCountry "HUN"]
[SourceTitle "playchess.com"]
[Source "ChessBase"]
[SourceQuality "1"]
[WhiteTeam "Argentina"]
[BlackTeam "Venezuela"]
[WhiteTeamCountry "ARG"]
[BlackTeamCountry "VEN"]
[TimeControl "40/5400+30:1800+30"]

1. c4 Nf6 2. g3 e6 3. Bg2 d5 4. Nf3 Be7 5. O-O O-O 6. b3 c5 7. e3 d4 8. exd4 cxd4 9. Re1 d3 10. Ne5 Qd4 11. Nc3 Nbd7 12. Nf3 Qb6 13. Na4 Qc7 14. Bb2 Bd6 15. Rc1 Nc5 16. b4 Nxa4 17. Qxa4 a5 18. c5 Bd7 19. Qb3 Be7 20. a3 axb4 21. axb4 Bb5 22. Nd4 Qd7 23. Re5 Ng4 24. Re4 Ba4 25. Qxd3 e5 26. Qe2 f5 27. Nxf5 Qxf5 28. Rxg4 Bb5 29. Bd5+ Kh8 30. Bxe5 Bf6 31. Bxf6 Rxf6 32. Qxb5 Qxg4 33. Qc4 Qf5 34. Rf1 Rd8 35. Be4 Qd7 36. d3 Rdf8 37. b5 h5 38. c6 bxc6 39. bxc6 Qa7 40. Qd5 g6 41. Qe5 Kg8 42. d4 Qa3 43. c7 Qc3 44. Bb7 Rb6 45. Bd5+ 1-0

[Event "45th FIDE Womens Olympiad 2024"]
[Site "Budapest"]
[Date "2024.09.12"]
[Round "2.103"]
[White "Perez Hernandez, Vicmary C."]
[Black "Amura, Claudia"]
[Result "0-1"]
[ECO "B22"]
[WhiteElo "1960"]
[BlackElo "2191"]
[Annotator "ChessBase"]
[PlyCount "54"]
[EventDate "2024.09.05"]
[EventType "team-tourn"]
[EventCountry "HUN"]
[SourceTitle "playchess.com"]
[Source "ChessBase"]
[SourceQuality "1"]
[WhiteTeam "Venezuela"]
[BlackTeam "Argentina"]
[WhiteTeamCountry "VEN"]
[BlackTeamCountry "ARG"]
[TimeControl "40/5400+30:1800+30"]

1. e4 c5 2. Nf3 e6 3. c3 d5 4. exd5 Qxd5 5. d4 Nf6 6. Be3 cxd4 7. cxd4 Bb4+ 8. Nc3 Qa5 9. Rc1 Qxa2 10. Qc2 Nc6 11. Bd2 Bxc3 12. Bxc3 Qd5 13. Bd3 b6 14. Bd2 Bb7 15. O-O O-O 16. Be3 Nb4 17. Qd2 Nxd3 18. Qxd3 Rac8 19. Qe2 Qh5 20. Kh1 Bxf3 21. gxf3 Nd5 22. Rg1 Qf5 23. Ra1 Rc2 24. Qd1 Nxe3 25. fxe3 Rfc8 26. Rxa7 h6 27. Qf1 Rc1 0-1

[Event "45th FIDE Womens Olympiad 2024"]
[Site "Budapest"]
[Date "2024.09.12"]
[Round "2.104"]
[White "Sarquis, Maria Belen"]
[Black "Pena Gonzalez, Clara Isabel"]
[Result "1-0"]
[ECO "B42"]
[WhiteElo "2172"]
[BlackElo "1895"]
[Annotator "ChessBase"]
[PlyCount "91"]
[EventDate "2024.09.05"]
[EventType "team-tourn"]
[EventCountry "HUN"]
[SourceTitle "playchess.com"]
[Source "ChessBase"]
[SourceQuality "1"]
[WhiteTeam "Argentina"]
[BlackTeam "Venezuela"]
[WhiteTeamCountry "ARG"]
[BlackTeamCountry "VEN"]
[TimeControl "40/5400+30:1800+30"]

1. e4 c5 2. Nf3 e6 3. d4 cxd4 4. Nxd4 a6 5. Bd3 Bc5 6. Nb3 Ba7 7. O-O Nc6 8. c4 Nf6 9. Qe2 d6 10. Nc3 O-O 11. Be3 Nd7 12. Rfd1 Qc7 13. Rac1 Nce5 14. Bxa7 Rxa7 15. Qe3 Ra8 16. Qd4 Nxd3 17. Rxd3 Ne5 18. Rg3 Ng6 19. Na4 e5 20. Qb6 Qe7 21. Rd1 Nf4 22. Nc3 Be6 23. Na5 Rac8 24. b3 Rc7 25. Rxd6 h5 26. Re3 Qg5 27. Rg3 Qe7 28. Re3 Qg5 29. Rg3 Qe7 30. Re3 Qg5 31. g3 Nh3+ 32. Kf1 Qf6 33. Red3 h4 34. Nd5 Qg5 35. Nxc7 Bg4 36. Qe3 Qh5 37. Rd8 Rxd8 38. Rxd8+ Kh7 39. Ke1 Ng1 40. Kd2 Nf3+ 41. Kc3 hxg3 42. hxg3 Qh1 43. Kb2 Nd4 44. Rxd4 exd4 45. Qxd4 Qe1 46. Nxb7 1-0

[Event "45th FIDE Womens Olympiad 2024"]
[Site "Budapest"]
[Date "2024.09.12"]
[Round "2.105"]
[White "Ouellet, Maili-Jade"]
[Black "Gomez Barrera, Javiera Belen"]
[Result "1-0"]
[ECO "E51"]
[WhiteElo "2318"]
[BlackElo "2123"]
[Annotator "ChessBase"]
[PlyCount "75"]
[EventDate "2024.09.05"]
[EventType "team-tourn"]
[EventCountry "HUN"]
[SourceTitle "playchess.com"]
[Source "ChessBase"]
[SourceQuality "1"]
[WhiteTeam "Canada"]
[BlackTeam "Chile"]
[WhiteTeamCountry "CAN"]
[BlackTeamCountry "CHI"]
[TimeControl "40/5400+30:1800+30"]

1. d4 d5 2. c4 e6 3. Nc3 Nf6 4. Nf3 Bb4 5. e3 O-O 6. Bd2 Be7 7. cxd5 exd5 8. Bd3 c6 9. O-O Nbd7 10. Qc2 h6 11. Rab1 Bd6 12. b4 Re8 13. Rfe1 Nf8 14. h3 Ne6 15. Ne5 Ng5 16. f4 Nge4 17. b5 Nxd2 18. Qxd2 c5 19. Rbc1 c4 20. Bb1 Ba3 21. Rcd1 Bb4 22. a3 Bxa3 23. Na2 a6 24. bxa6 Rxa6 25. e4 Nxe4 26. Bxe4 dxe4 27. Nxc4 Bf8 28. d5 Bc5+ 29. Kh1 b5 30. Ne5 Qa5 31. Nc3 e3 32. Qc2 b4 33. Ne4 Bb6 34. Nd6 Rf8 35. Nxc8 b3 36. Ne7+ Kh8 37. Qxb3 Qc5 38. d6 1-0

[Event "45th FIDE Womens Olympiad 2024"]
[Site "Budapest"]
[Date "2024.09.12"]
[Round "2.106"]
[White "Abarca Gonzalez, Damaris"]
[Black "Pham, Bich Ngoc"]
[Result "1/2-1/2"]
[ECO "B26"]
[WhiteElo "1991"]
[BlackElo "2199"]
[Annotator "ChessBase"]
[PlyCount "85"]
[EventDate "2024.09.05"]
[EventType "team-tourn"]
[EventCountry "HUN"]
[SourceTitle "playchess.com"]
[Source "ChessBase"]
[SourceQuality "1"]
[WhiteTeam "Chile"]
[BlackTeam "Canada"]
[WhiteTeamCountry "CHI"]
[BlackTeamCountry "CAN"]
[TimeControl "40/5400+30:1800+30"]

1. e4 c5 2. Nc3 d6 3. g3 Nc6 4. Bg2 g6 5. d3 Bg7 6. Be3 e5 7. Qd2 Nge7 8. Bh6 Bxh6 9. Qxh6 Nd4 10. Qd2 h5 11. h4 Bg4 12. Nd1 d5 13. c3 Ndc6 14. Ne3 Be6 15. Nf3 f6 16. exd5 Nxd5 17. O-O Qd7 18. Nxd5 Bxd5 19. Qe3 Qe7 20. a3 O-O 21. b4 b6 22. b5 Na5 23. c4 Bb7 24. Rab1 Rad8 25. Ne1 Rfe8 26. Bxb7 Qxb7 27. Qh6 Qg7 28. Qxg7+ Kxg7 29. f3 f5 30. Rb2 Rd4 31. Re2 Kf6 32. Kg2 Re6 33. Rb2 Ke7 34. Rbf2 Kd6 35. Kh3 Nb3 36. Rc2 Kc7 37. Rc3 Na5 38. Nc2 Rd7 39. Ne3 Rd4 40. Nc2 Rd7 41. Ne3 Rd4 42. Nd5+ Kd6 43. Re1 1/2-1/2